bitfinex/quotes_ETHUSD_20240710
["timestamp","ask_amount","ask_price","bid_price","bid_amount"]
[1720634426562,0.31937186,3111.5,3111.1,0.04160293]
[1720634426770,0.31937186,3111.5,3110.9,1.54848937]
[1720634426976,0.31937186,3111.5,3111.2,0.04159242]
[1720634427147,0.31937186,3111.5,3110.9,1.54848937]
[1720634427749,0.31937186,3111.5,3111.0,0.0417189]
[1720634427954,0.31765719,3111.4,3111.0,0.0417189]
[1720634429178,5.3072,3112.0,3111.0,0.0417189]
[1720634429495,2.3072,3112.0,3111.1,0.04169567]
[1720634429781,2.3072,3112.0,3110.6,2.2818]
[1720634429782,3.0,3111.9,3110.6,2.2818]
[1720634429992,3.0,3111.9,3111.2,0.04163244]
[1720634430223,3.0,3111.9,3111.3,0.04156921]
[1720634430494,3.0,3111.9,3110.6,2.2818]
[1720634430688,3.0,3111.9,3111.4,0.04150598]
[1720634430891,3.0,3111.9,3110.6,2.2818]
[1720634431103,3.0,3111.9,3111.5,0.04144276]
[1720634431396,3.0,3111.9,3110.6,2.2818]
[1720634431758,3.0,3111.9,3110.7,0.04199775]
[1720634432083,2.3072,3111.5,3110.7,0.04199775]
[1720634432285,0.28572,3111.4,3110.7,0.04199775]
[1720634432453,2.3072,3111.5,3110.7,0.04199775]
[1720634432986,0.33655751,3111.4,3110.7,0.04199775]
[1720634433157,1.40371128,3111.3,3110.7,0.04199775]
[1720634433551,1.40380505,3111.2,3110.7,0.04199775]
[1720634433791,1.40380505,3111.1,3110.7,0.04199775]
[1720634434007,1.40380505,3111.0,3110.7,0.04199775]
[1720634434214,1.40380505,3110.9,3110.7,0.04199775]
[1720634434507,1.40380505,3110.8,3110.7,0.04199775]
[1720634434866,1.40380505,3111.3,3110.7,0.04199775]
[1720634435069,1.40380505,3111.2,3110.7,0.04199775]
[1720634435304,1.40380505,3111.1,3110.7,0.04199775]
[1720634435512,1.40380505,3111.0,3110.7,0.04199775]
[1720634435808,1.40380505,3110.9,3110.7,0.04199775]
[1720634436028,1.40378319,3110.8,3110.7,0.04199775]
[1720634436197,1.40378319,3111.3,3110.7,0.04199775]
[1720634436396,1.40378319,3111.2,3110.7,0.04199775]
[1720634436706,1.40378319,3111.1,3110.7,0.04199775]
[1720634436910,1.40378319,3111.0,3110.7,0.04199775]
[1720634437117,1.40375888,3110.9,3110.7,0.42922646]
[1720634437278,0.33655751,3111.4,3110.7,0.42922646]
[1720634437609,1.40368785,3111.3,3110.7,0.42922646]
[1720634440419,1.40368785,3111.3,3110.8,2.34608367]
[1720634440585,0.33655751,3111.4,3110.9,2.2818]
[1720634440767,0.33655751,3111.4,3111.1,2.2818]
[1720634440976,0.33655751,3111.4,3111.1,5.2818]
[1720634441314,0.33655751,3111.4,3111.2,0.04165062]
[1720634444410,0.33655751,3111.4,3111.3,2.2818]
[1720634444930,0.33655751,3111.4,3111.3,2.32322555]
[1720634445133,0.33655751,3111.4,3111.3,2.55554811]
[1720634445437,0.33655751,3111.4,3111.3,5.55554811]
[1720634447231,0.33655751,3111.4,3111.3,3.04142555]
[1720634447443,0.33655751,3111.4,3111.3,0.04142555]
[1720634447623,1.74003506,3111.4,3110.9,2.2814]
[1720634447938,1.74003506,3111.4,3111.0,0.04159162]
[1720634447939,0.33655751,3111.4,3111.0,0.04159162]
[1720634452971,0.33655751,3111.4,3111.1,2.43417649]
[1720634453120,7.44,3112.7,3111.3,2.2813]
[1720634453456,2.3951,3112.9,3111.5,2.2813]
[1720634453662,2.3951,3112.9,3111.6,0.04121769]
[1720634457813,1.51151569,3112.8,3111.6,0.04121769]
[1720634458016,2.3951,3112.9,3111.7,0.53225177]
[1720634458233,2.3951,3112.9,3111.8,0.04100039]
[1720634461663,2.3951,3112.9,3111.8,0.10525865]
[1720634461823,5.4559,3113.2,3111.9,2.2859]
[1720634462028,2.06108113,3113.1,3112.0,0.10497773]
[1720634462217,2.06108113,3113.1,3112.1,0.23908777]
[1720634462218,1.51108113,3113.0,3112.1,0.23908777]
[1720634462563,1.30169811,3113.1,3112.2,0.0405931]
[1720634462938,1.51102022,3113.0,3111.9,2.2764931]
[1720634463340,1.51102022,3113.0,3112.0,0.03934822]
[1720634464674,1.30169811,3113.1,3112.0,0.03934822]
[1720634464834,2.2846,3112.8,3112.0,0.03934822]
[1720634465170,2.2846,3112.8,3111.4,1.54848937]
[1720634465466,2.06061064,3112.7,3111.5,0.03968062]
[1720634465634,0.55,3112.7,3111.5,0.03968062]
[1720634465823,0.28346,3112.6,3111.5,0.03968062]
[1720634466024,0.55,3112.5,3111.6,2.3375]
[1720634466376,0.55,3112.5,3111.7,0.03960144]
[1720634466540,0.28346,3112.6,3111.7,0.03960144]
[1720634467428,2.865,3113.3,3111.7,0.03960144]
[1720634467629,2.06048972,3112.9,3111.7,0.03960144]
[1720634467875,0.55,3112.9,3111.7,0.03960144]
[1720634468270,1.51049373,3112.8,3111.7,0.03960144]
[1720634469171,2.4196,3112.6,3111.7,0.03960144]
[1720634469378,2.06025107,3112.5,3111.7,0.03960144]
[1720634469579,1.95823618,3112.4,3111.7,0.03960144]
[1720634469736,2.06025107,3112.3,3111.2,2.2782]
[1720634469937,0.55,3112.3,3111.8,0.03952914]
[1720634470278,1.51011353,3112.2,3111.9,0.03946594]
[1720634470626,1.51011353,3112.2,3111.2,2.2782]
[1720634470884,2.3444,3112.0,3111.3,0.03984523]
[1720634471232,2.3444,3112.0,3111.1,1.54848937]
[1720634471434,2.3444,3112.0,3111.2,0.0399739]
[1720634471771,2.3444,3112.0,3110.8,2.401]
[1720634472292,0.55,3111.9,3110.9,0.04020725]
[1720634472430,2.3108,3111.8,3110.9,0.04020725]
[1720634472637,0.55,3111.7,3110.6,1.54848937]
[1720634472873,0.55,3111.7,3110.7,0.04049734]
[1720634473579,0.25504113,3111.9,3110.8,2.3239]
[1720634473737,0.25504113,3111.9,3110.9,0.23643973]
[1720634473944,0.25504113,3111.9,3110.9,0.04045085]
[1720634476354,2.71788511,3112.4,3111.0,2.50768232]
[1720634476562,0.55,3112.3,3111.2,2.4434]
[1720634476784,2.71788511,3112.4,3111.2,2.4434]
[1720634476989,0.27178851,3112.3,3111.3,0.04016517]
[1720634478372,0.55,3112.2,3111.3,0.04016517]
[1720634478575,0.55,3112.2,3110.9,2.3504]
[1720634478774,2.3923,3112.1,3111.4,0.04010195]
[1720634478962,0.55,3112.0,3110.9,2.3504]
[1720634479167,0.84423,3112.0,3111.0,0.23504]
[1720634479362,0.84423,3112.0,3111.0,0.27539488]
[1720634479585,0.66336532,3111.9,3111.0,0.04035488]
[1720634479786,0.66336532,3111.8,3111.0,0.04035488]
[1720634480065,0.66336532,3111.7,3111.0,0.04035488]
[1720634480265,0.66336532,3111.6,3111.0,0.04035488]
[1720634480477,0.66336532,3111.5,3111.0,0.04035488]
[1720634480711,0.29423,3112.0,3111.0,0.04035488]
[1720634480875,1.48163561,3111.9,3111.0,0.04035488]
[1720634481075,0.66298261,3111.8,3111.0,0.04035488]
[1720634487124,0.66315458,3111.7,3111.0,0.04035488]
[1720634487325,0.66315458,3111.6,3111.0,0.04035488]
[1720634487532,0.66315458,3111.5,3111.0,0.04035488]
[1720634487699,0.66315458,3111.4,3111.0,0.04035488]
[1720634487902,0.66317796,3111.3,3111.0,0.04035488]
[1720634488127,2.4265,3111.8,3111.0,0.04035488]
[1720634488349,2.4265,3111.8,3110.6,3.81128937]
[1720634488350,0.66315945,3111.7,3110.6,3.81128937]
[1720634488493,0.66315945,3111.6,3111.1,0.04034074]
[1720634488823,2.4265,3111.8,3110.6,3.81128937]
[1720634488824,0.66315945,3111.5,3110.6,3.81128937]
[1720634489026,0.66315945,3111.4,3111.2,0.04027751]
[1720634489334,2.4265,3111.8,3110.6,3.81128937]
[1720634489335,0.66315945,3111.3,3110.6,3.81128937]
[1720634489498,2.4265,3111.8,3110.6,3.81128937]
[1720634489694,0.66347851,3111.7,3110.6,3.81128937]
[1720634489905,0.66347851,3111.6,3110.6,3.81128937]
[1720634490140,0.66347851,3111.5,3110.6,4.19241831]
[1720634490424,0.66347851,3111.4,3110.6,4.19241831]
[1720634490627,2.4265,3111.8,3110.6,4.19241831]
[1720634490805,0.66380122,3111.7,3110.6,4.19241831]
[1720634491007,0.66380122,3111.6,3110.6,4.19241831]
[1720634491323,0.66380122,3111.5,3110.7,0.41924183]
[1720634491519,0.6639071,3111.4,3110.7,0.41924183]
[1720634491717,2.4265,3111.8,3110.6,2.2628]
[1720634491718,0.6638285,3111.3,3110.6,2.2628]
[1720634492018,2.4265,3111.8,3110.6,2.2628]
[1720634492217,0.55,3111.7,3110.6,2.2628]
[1720634492417,0.29765,3111.6,3110.6,2.2628]
[1720634495115,0.55,3111.5,3110.6,2.2628]
[1720634497398,0.55,3111.5,3110.7,0.04069739]
[1720634499530,2.4144,3111.4,3110.7,0.04069739]
[1720634499859,2.75107714,3111.4,3110.7,0.04069739]
[1720634500153,0.88010771,3111.3,3110.7,0.04069739]
[1720634501859,3.88010771,3111.3,3110.7,0.04069739]
[1720634502021,3.88010771,3111.3,3110.3,2.4542]
[1720634502220,3.88010771,3111.3,3110.8,0.04069963]
[1720634502528,3.88010771,3111.3,3110.9,0.04063638]
[1720634502855,0.66311849,3111.2,3110.9,0.04063638]
[1720634503077,0.66311849,3111.2,3110.3,2.4542]
[1720634503669,0.66311849,3111.2,3110.4,0.04097448]
[1720634503969,0.55,3111.3,3110.3,2.4542]
[1720634504375,0.55,3111.3,3110.4,0.04096539]
[1720634509591,5.1698,3112.1,3110.5,2.4108]
[1720634509795,3.21,3112.4,3110.5,2.4517385]
[1720634509994,3.21,3112.6,3110.9,2.865]
[1720634510162,2.865,3113.2,3111.2,2.4108]
[1720634510502,0.2865,3113.2,3111.5,2.3847]
[1720634510700,2.3048,3113.5,3111.7,2.3847]
[1720634511009,2.3048,3113.5,3111.6,0.06425829]
[1720634511010,2.3048,3113.5,3111.8,2.30551459]
[1720634512905,0.55,3113.4,3111.8,2.30551459]
[1720634513272,1.40310544,3113.3,3111.8,2.30551459]
[1720634513584,0.55,3113.2,3111.8,2.30551459]
[1720634513775,1.40310544,3113.1,3112.0,2.4924]
[1720634513985,0.74531054,3113.2,3112.0,2.4924]
[1720634514287,0.74531054,3113.2,3112.2,2.386]
[1720634514475,1.40304566,3113.1,3112.3,0.03948954]
[1720634515299,1.40305299,3113.0,3112.3,0.03948954]
[1720634515464,1.40305299,3112.9,3112.3,0.03948954]
[1720634515663,1.40305299,3112.8,3112.3,0.03948954]
[1720634515989,1.40305299,3112.7,3112.2,2.386]
[1720634516184,1.40305299,3112.6,3112.4,0.03942636]
[1720634516387,1.40305299,3112.5,3112.3,0.03917318]
[1720634516565,1.40305299,3112.5,3112.2,2.6246]
[1720634516566,0.74531054,3113.2,3112.5,0.03904681]
[1720634516767,1.4030794,3113.1,3112.4,0.03910999]
[1720634517067,1.4030794,3113.1,3112.5,0.03904681]
[1720634517270,1.4030794,3113.1,3112.2,2.386]
[1720634517470,1.4030794,3113.1,3112.3,0.03917318]
[1720634519506,0.33657594,3113.0,3112.3,0.03917318]
[1720634519671,1.4030794,3112.9,3112.3,0.03917318]
[1720634520099,1.40314309,3112.8,3112.3,0.03917318]
[1720634520270,1.40314309,3112.7,3112.2,2.386]
[1720634520492,0.33657594,3113.0,3112.3,0.03917318]
[1720634520829,1.40313929,3112.9,3112.3,0.03917318]
[1720634521133,1.57720351,3112.8,3112.3,0.03917318]
[1720634521333,1.40323199,3112.7,3112.3,0.03917318]
[1720634521495,1.40323199,3112.7,3112.2,2.386]
[1720634521696,1.40323199,3112.7,3112.3,0.03917318]
[1720634521919,1.40323199,3112.7,3112.2,2.386]
[1720634522299,1.40323199,3112.7,3112.3,0.03917318]
[1720634522600,1.40323199,3112.7,3112.2,2.386]
[1720634523029,1.40323199,3112.7,3112.3,0.03917318]
[1720634523334,1.40323199,3112.7,3112.2,2.386]
[1720634523633,0.55,3112.6,3111.8,2.3828]
[1720634523833,1.59855519,3112.5,3112.3,0.03917318]
[1720634524002,1.40323199,3112.4,3111.8,2.3828]
[1720634524492,1.40339233,3112.3,3111.8,2.3828]
[1720634524698,1.40339233,3112.2,3111.8,2.3828]
[1720634524905,0.1953232,3112.5,3111.8,2.3828]
[1720634525111,1.40334484,3112.4,3111.8,2.3828]
[1720634525308,1.40334484,3112.3,3111.8,2.3828]
[1720634525592,1.40334484,3112.2,3111.8,2.3828]
[1720634525798,1.40341789,3112.1,3111.8,2.3828]
[1720634525993,0.55,3112.6,3111.8,2.3828]
[1720634526238,1.4034197,3112.5,3111.8,2.3828]
[1720634526450,1.4034197,3112.4,3111.8,2.3828]
[1720634526764,1.4034197,3112.3,3111.8,2.3828]
[1720634527055,1.4034197,3112.2,3111.8,2.3828]
[1720634527212,1.4034197,3112.1,3111.8,2.3828]
[1720634527415,1.4034197,3112.0,3111.8,2.3828]
[1720634527600,0.91079272,3112.5,3111.8,2.3828]
[1720634527803,1.40343134,3112.4,3111.8,2.3828]
[1720634528050,0.91079272,3112.5,3111.8,2.3828]
[1720634528301,1.82557815,3112.4,3111.8,2.3828]
[1720634528503,1.40343616,3112.3,3111.8,2.3828]
[1720634529158,0.91079272,3112.5,3111.8,2.3828]
[1720634529452,1.40328581,3112.4,3111.8,2.3828]
[1720634529600,1.40328581,3112.3,3111.8,2.04620978]
[1720634529804,1.40328581,3112.2,3111.8,2.04620978]
[1720634530054,1.40328581,3112.1,3111.9,0.03957718]
[1720634530349,0.55,3112.7,3111.9,0.03957718]
[1720634530648,1.4033881,3112.6,3111.9,0.03957718]
[1720634530804,1.4033881,3112.5,3111.8,2.04620978]
[1720634531005,1.4033881,3112.4,3111.8,2.04620978]
[1720634531245,1.4033881,3112.3,3111.8,2.04620978]
[1720634531447,2.3502,3112.6,3111.8,2.04620978]
[1720634531746,1.40345425,3112.5,3111.8,2.04620978]
[1720634531942,0.55,3112.4,3111.8,2.04620978]
[1720634532157,1.40345425,3112.3,3111.8,2.04620978]
[1720634533511,1.40345425,3112.2,3111.8,2.04620978]
[1720634533712,0.5865,3112.5,3111.8,2.04620978]
[1720634533911,1.40334969,3112.4,3111.8,2.04620978]
[1720634534749,0.3366105,3112.3,3111.8,2.04620978]
[1720634534912,1.403401,3112.2,3111.8,2.04620978]
[1720634535247,0.17400115,3112.2,3111.8,2.04620978]
[1720634535446,1.40339828,3112.1,3111.8,2.04620978]
[1720634535652,0.3366105,3112.3,3111.8,2.04620978]
[1720634535854,1.40341435,3112.2,3111.8,2.04620978]
[1720634538315,1.40337998,3112.1,3111.8,2.04620978]
[1720634538511,0.17399905,3112.1,3111.8,2.04620978]
[1720634538752,1.40338272,3112.0,3111.8,2.04620978]
[1720634538914,0.3366105,3112.3,3111.8,2.04620978]
[1720634539111,1.4033888,3112.2,3111.8,2.04620978]
[1720634541769,0.3366105,3112.3,3111.8,2.04620978]
[1720634541977,1.95343866,3112.2,3111.8,2.04620978]
[1720634542127,1.63244358,3112.1,3111.8,2.04620978]
[1720634542327,1.40343866,3112.0,3111.8,2.04620978]
[1720634545270,0.22900492,3112.1,3111.8,2.04620978]
[1720634545430,0.55,3112.2,3111.8,2.04620978]
[1720634545431,1.40344277,3112.0,3111.8,2.04620978]
[1720634545761,1.40344277,3111.9,3111.8,2.04620978]
[1720634545974,1.40344277,3112.1,3111.8,2.04620978]
[1720634546180,1.40344277,3112.0,3111.8,2.04620978]
[1720634546336,1.40344277,3111.9,3111.8,2.04620978]
[1720634546753,1.40344277,3112.1,3111.8,2.04620978]
[1720634546966,1.59878705,3112.0,3111.8,2.04620978]
[1720634547137,0.19534428,3112.0,3111.8,2.04620978]
[1720634547332,1.40346445,3111.9,3111.8,2.04620978]
[1720634547734,1.40346445,3112.1,3111.8,2.04620978]
[1720634547939,1.40346445,3112.0,3111.8,2.04620978]
[1720634548181,1.40346445,3111.9,3111.8,2.04620978]
[1720634548476,0.3366105,3112.3,3111.8,2.04620978]
[1720634548678,1.40343413,3112.2,3111.8,2.04620978]
[1720634548886,1.5774417,3112.1,3111.8,2.04620978]
[1720634549172,1.40343723,3112.0,3111.8,2.04620978]
[1720634550142,1.40343723,3111.9,3111.8,2.04620978]
[1720634550347,1.40343723,3112.2,3111.8,2.04620978]
[1720634550594,1.40343723,3112.1,3111.8,2.04620978]
[1720634550841,1.40343723,3112.0,3111.8,2.04620978]
[1720634552438,1.40335277,3111.9,3111.8,2.04620978]
[1720634553260,1.40335277,3112.0,3111.8,2.04620978]
[1720634553468,0.33665705,3112.1,3111.8,2.04620978]
[1720634553469,1.40335277,3111.9,3111.8,2.04620978]
[1720634553745,1.40335277,3112.0,3111.8,2.04620978]
[1720634555880,0.33665705,3112.1,3111.8,2.04620978]
[1720634556038,1.40339872,3112.0,3111.8,2.04620978]
[1720634556973,1.40339872,3111.9,3111.8,2.04620978]
[1720634557179,1.40339872,3112.2,3111.8,2.04620978]
[1720634557481,1.66303859,3112.2,3111.8,2.08543346]
[1720634557680,1.40339872,3112.1,3111.8,1.193]
[1720634557879,0.33666168,3112.6,3112.0,3.6716]
[1720634558114,1.4030833,3112.5,3112.1,2.4786]
[1720634558383,1.193,3113.2,3112.1,2.4786]
[1720634558384,1.4030833,3112.4,3112.3,2.4786]
[1720634558554,1.193,3113.2,3112.3,2.4786]
[1720634558555,1.4030833,3113.1,3112.3,2.4786]
[1720634558756,1.4030833,3113.0,3112.3,2.51748953]
[1720634558982,1.4030833,3112.9,3112.3,2.4786]
[1720634559187,1.4030833,3112.9,3112.4,0.03882634]
[1720634559484,1.40301602,3112.8,3112.4,0.03882634]
[1720634559669,1.193,3113.0,3112.4,0.03882634]
[1720634559670,1.40301602,3112.7,3112.4,0.03882634]
[1720634559989,1.40301602,3112.6,3112.4,0.03882634]
[1720634560289,1.40301602,3112.5,3112.4,0.03882634]
[1720634560442,1.40301602,3112.9,3112.4,0.03882634]
[1720634560650,1.40301602,3112.8,3112.4,0.03882634]
[1720634560850,1.40301602,3112.7,3112.4,0.03882634]
[1720634561081,1.40301602,3112.6,3112.3,2.4786]
[1720634561288,2.77737432,3113.4,3112.5,0.03876316]
[1720634561497,1.95300371,3113.3,3112.4,0.03882634]
[1720634561783,1.40300371,3113.2,3112.3,2.4786]
[1720634562000,0.33667432,3113.4,3112.3,2.4786]
[1720634562001,1.40300371,3113.1,3112.3,2.4786]
[1720634562199,1.40300371,3113.0,3112.5,2.3083]
[1720634562384,1.40300371,3112.9,3112.5,2.3083]
[1720634562590,1.40300371,3112.8,3112.6,0.03869999]
[1720634562916,0.33667432,3113.4,3112.6,0.03869999]
[1720634563210,1.40292243,3113.3,3112.5,2.3083]
[1720634563414,0.17395968,3113.2,3112.5,2.3083]
[1720634563704,1.40292243,3113.1,3112.5,2.3083]
[1720634564006,1.40292243,3113.1,3112.6,2.36719999]
[1720634564175,8.10654429,3114.4,3112.6,2.36719999]
[1720634564176,1.40292243,3113.0,3112.6,2.36719999]
[1720634564510,1.40292243,3112.9,3112.7,2.3285]
[1720634564812,9.725,3114.4,3112.8,0.0384429]
[1720634564813,0.744,3114.3,3112.8,0.0384429]
[1720634564964,1.40263862,3114.2,3112.9,2.418]
[1720634565169,0.24832484,3114.1,3112.9,2.45631438]
[1720634565365,1.40263862,3114.0,3112.9,2.45631438]
[1720634566291,1.4025552,3113.9,3112.9,2.45631438]
[1720634566502,1.4025552,3113.8,3112.9,2.45631438]
[1720634566672,1.4025552,3113.7,3112.9,2.45631438]
[1720634566869,1.4025552,3113.6,3113.1,2.4619]
[1720634567091,1.4025552,3113.5,3113.1,2.4619]
[1720634567367,0.24832484,3114.1,3113.2,2.49977435]
[1720634567563,1.40252705,3114.0,3113.2,2.4619]
[1720634567779,1.40252705,3114.0,3113.3,0.0378112]
[1720634568003,1.86761224,3114.0,3113.4,2.4178]
[1720634568166,1.40252705,3113.9,3113.4,2.4178]
[1720634568367,1.40252705,3113.8,3113.4,2.4178]
[1720634568568,0.24832484,3114.1,3113.5,0.03768491]
[1720634568781,1.40247285,3114.0,3113.5,0.03768491]
[1720634568980,1.40247285,3113.9,3113.6,2.2951]
[1720634569213,0.33660976,3114.3,3113.6,2.2951]
[1720634569510,1.40240984,3114.2,3113.6,2.2951]
[1720634569722,1.40239912,3114.1,3113.6,2.2951]
[1720634570005,3.0,3114.7,3113.6,2.2951]
[1720634570006,1.40239912,3114.0,3113.6,2.2951]
[1720634570165,0.85824,3114.6,3113.6,2.2951]
[1720634570368,1.95241436,3114.5,3113.6,2.2951]
[1720634570567,1.40241436,3114.4,3113.6,2.2951]
[1720634573121,0.55,3114.5,3113.6,2.2951]
[1720634573273,1.40239025,3114.4,3113.6,2.2951]
[1720634573466,0.19523903,3114.3,3113.6,2.2951]
[1720634573807,1.40239025,3114.2,3113.6,2.2951]
[1720634574607,0.19523903,3114.3,3113.6,2.2951]
[1720634575677,0.19523903,3114.3,3113.7,0.03611593]
[1720634576180,3.21,3114.8,3113.8,2.2816]
[1720634576375,1.9523085,3114.7,3113.8,2.2816]
[1720634576679,1.40229291,3114.6,3113.8,2.2816]
[1720634577686,0.55,3114.7,3113.8,2.2816]
[1720634578339,3.55,3114.7,3113.8,2.2816]
[1720634578506,0.676,3114.6,3113.8,2.2816]
[1720634579631,0.33655115,3114.5,3113.8,2.2816]
[1720634583897,0.33655115,3114.5,3113.9,0.03591365]
[1720634587633,0.33655115,3114.5,3114.0,2.4589]
[1720634587917,0.33655115,3114.5,3114.0,2.49472881]
[1720634590344,0.33655115,3114.5,3114.0,2.74420169]
[1720634594628,0.33655115,3114.5,3114.0,3.93520169]
[1720634595765,0.33655115,3114.5,3114.1,2.3624]
[1720634596081,0.33655115,3114.5,3114.2,0.03555058]
[1720634596235,0.33655115,3114.5,3114.3,2.4324]
[1720634596563,0.33655115,3114.5,3114.3,2.71468253]
[1720634598258,0.33655115,3114.5,3114.3,2.46788747]
[1720634608737,0.33655115,3114.5,3114.3,0.03548747]
[1720634609082,0.33655115,3114.5,3114.0,2.4054]
[1720634609381,0.33655115,3114.5,3114.4,0.03656242]
[1720634609688,0.33655115,3114.5,3114.4,0.03412492]
[1720634609689,1.52755115,3114.5,3114.4,0.03412492]
[1720634609838,4.86050627,3114.5,3113.6,1.54848937]
[1720634610188,4.86050627,3114.5,3113.4,2.2932]
[1720634610189,1.191,3114.1,3113.4,2.2932]
[1720634610978,0.33654048,3114.0,3113.4,2.2932]
[1720634614390,0.33654048,3114.0,3113.6,2.3979]
[1720634616683,0.33654048,3114.0,3113.3,3.5889]
[1720634617179,0.33654048,3114.0,3113.3,3.94779]
[1720634617367,0.33654048,3114.0,3113.4,0.03475615]
[1720634623608,0.04024385,3113.4,3113.3,2.75679]
[1720634624533,0.04024385,3113.4,3113.3,2.3979]
[1720634627261,0.04024385,3113.4,3112.8,2.2998]
[1720634629577,0.04024385,3113.4,3112.8,2.154]
[1720634631252,0.04024385,3113.4,3112.9,0.03948369]
[1720634639278,0.04024385,3113.4,3113.0,2.4161]
[1720634639481,0.04024385,3113.4,3113.2,2.4161]
[1720634639856,0.04024385,3113.4,3113.3,0.0391713]
[1720634640059,0.04024385,3113.4,3113.2,5.4161]
[1720634640260,0.04024385,3113.4,3113.3,0.0391713]
[1720634640588,0.04024385,3113.4,3113.2,5.4161]
[1720634640919,0.04024385,3113.4,3113.3,1.79691475]
[1720634642017,0.04024385,3113.4,3113.3,4.79691475]
[1720634642377,0.04024385,3113.4,3113.3,4.7942863]
[1720634643828,0.04024385,3113.4,3113.3,7.0565863]
[1720634644294,2.3629,3115.0,3113.4,2.3317]
[1720634644504,0.33620835,3114.4,3113.6,2.2615]
[1720634644692,2.3629,3115.0,3113.7,2.2615]
[1720634644887,0.33618234,3114.5,3114.3,1.191]
[1720634645200,2.3629,3115.0,3114.3,1.191]
[1720634645536,0.33618152,3114.5,3114.4,0.04143188]
[1720634645679,0.23629,3114.9,3114.4,0.04143188]
[1720634645882,0.3361857,3114.5,3114.1,1.191]
[1720634646230,0.3361857,3114.5,3113.8,3.0]
[1720634646426,0.3361857,3114.5,3114.1,1.191]
[1720634647293,0.3361857,3114.5,3114.2,0.04156477]
[1720634650131,0.3361857,3114.5,3114.3,1.191]
[1720634650432,0.3361857,3114.5,3114.3,1.23229897]
[1720634653010,0.3361857,3114.5,3114.3,0.04129897]
[1720634653212,0.3361857,3114.5,3114.1,1.191]
[1720634653531,0.3361857,3114.5,3114.2,0.04133347]
[1720634655028,2.4196,3114.9,3114.2,0.04133347]
[1720634655391,2.4196,3114.9,3114.3,1.191]
[1720634655796,2.4196,3114.9,3114.4,0.04490414]
[1720634657028,2.4196,3114.9,3114.1,1.191]
[1720634657222,2.4196,3114.9,3113.9,2.3084]
[1720634657223,2.81427971,3114.9,3114.2,0.0413199]
[1720634657428,2.3048,3114.8,3114.0,1.191]
[1720634657945,2.3048,3114.8,3114.1,0.04516232]
[1720634658149,0.26994797,3114.7,3114.1,0.04516232]
[1720634661118,0.26994797,3114.7,3114.1,1.191]
[1720634661340,2.2703,3114.6,3114.2,0.04507625]
[1720634661763,2.2703,3114.6,3113.9,1.191]
[1720634662421,2.2703,3114.6,3114.0,0.04147768]
[1720634662650,0.2540248,3114.5,3114.0,0.04147768]
[1720634662853,2.2703,3114.6,3114.0,0.04147768]
[1720634662854,2.2703,3114.6,3114.1,1.191]
[1720634663155,2.255,3114.9,3114.2,0.04509848]
[1720634663322,2.255,3114.9,3114.3,1.191]
[1720634663515,2.255,3114.9,3114.3,1.23601242]
[1720634663722,2.51411971,3114.9,3114.3,1.23601242]
[1720634665044,2.51411971,3114.9,3114.3,0.04501242]
[1720634665243,2.51411971,3114.9,3114.3,1.191]
[1720634665450,2.51411971,3114.9,3114.4,0.04492637]
[1720634666563,1.40211132,3114.8,3114.4,0.04492637]
[1720634666763,1.82735413,3114.8,3114.4,0.04492637]
[1720634666950,1.40211132,3114.7,3114.4,0.04492637]
[1720634667519,0.3361971,3115.0,3114.6,1.191]
[1720634667851,0.3361971,3115.0,3114.7,0.0409459]
[1720634667852,1.40194373,3114.9,3114.7,0.0409459]
[1720634668855,1.40194373,3114.9,3114.4,1.191]
[1720634669017,0.3361971,3115.0,3114.8,0.04086703]
[1720634669218,0.3361971,3115.0,3114.4,1.191]
[1720634669219,1.40194758,3114.9,3114.4,1.191]
[1720634669455,1.40194758,3114.9,3114.5,0.04110363]
[1720634671380,1.40200788,3114.8,3114.5,0.04110363]
[1720634671679,0.3361971,3115.0,3114.2,3.5757]
[1720634671880,1.40200049,3114.9,3114.6,0.04475428]
[1720634672084,1.40200049,3114.9,3114.2,3.5757]
[1720634672266,1.40200049,3114.9,3114.7,0.04466825]
[1720634672475,1.40200049,3114.9,3114.4,1.191]
[1720634672663,1.40200049,3114.9,3114.8,0.04458222]
[1720634672862,1.40200049,3114.9,3114.4,1.191]
[1720634673044,1.40200049,3114.9,3114.5,0.04484033]
[1720634674755,0.3361971,3115.0,3114.5,0.04484033]
[1720634675085,1.40195606,3114.9,3114.5,0.04484033]
[1720634677380,0.3361971,3115.0,3114.7,1.191]
[1720634677582,0.3361971,3115.0,3114.9,1.191]
[1720634677787,2.3865,3115.4,3114.9,1.191]
[1720634677981,1.4017574,3115.3,3114.9,1.23973416]
[1720634678414,2.3865,3115.4,3114.9,1.23973416]
[1720634678582,1.40174434,3115.3,3114.9,1.23973416]
[1720634680566,1.40174434,3115.2,3114.9,1.23973416]
[1720634680815,1.40178982,3115.1,3114.9,1.23973416]
[1720634681010,0.33619418,3115.5,3114.9,1.23973416]
[1720634681216,1.40178631,3115.4,3114.9,1.23973416]
[1720634681810,0.33619418,3115.5,3114.9,1.23973416]
[1720634682104,1.40178509,3115.4,3114.9,1.23973416]
[1720634682312,1.40178509,3115.3,3114.9,1.23973416]
[1720634682506,1.40178509,3115.2,3114.9,1.23973416]
[1720634682697,1.40178509,3115.1,3114.9,1.23973416]
[1720634682903,0.33619418,3115.5,3114.9,1.23973416]
[1720634683076,1.40179074,3115.4,3114.9,1.23973416]
[1720634683276,1.40179074,3115.3,3114.9,1.23973416]
[1720634683497,1.40179074,3115.2,3114.9,1.23973416]
[1720634683703,1.40179074,3115.1,3114.9,1.23973416]
[1720634683902,1.40179074,3115.0,3114.9,1.23973416]
[1720634684229,1.40179074,3115.4,3114.9,1.23973416]
[1720634684532,1.40179074,3115.3,3114.9,1.191]
[1720634684702,1.40179074,3115.2,3115.0,0.05121884]
[1720634684899,1.40179074,3115.1,3115.0,0.05121884]
[1720634685434,1.40182487,3115.1,3115.0,0.05121884]
[1720634685896,1.73801905,3115.5,3114.7,1.191]
[1720634686111,1.40182487,3115.4,3115.0,0.05122786]
[1720634686331,1.40182487,3115.4,3114.7,1.191]
[1720634686635,1.40182487,3115.4,3115.1,0.05112273]
[1720634686820,1.9677699,3115.4,3114.7,1.191]
[1720634687019,1.40182487,3115.3,3114.7,1.191]
[1720634687230,1.40182487,3115.2,3114.8,0.05143813]
[1720634687444,1.40182487,3115.1,3114.8,0.05143813]
[1720634687607,1.40182487,3115.0,3114.8,0.34968381]
[1720634687945,0.33619418,3115.5,3114.9,0.05133299]